[Event "Queens Festival Europe 2022"]
[Site "Tornelo"]
[Date "2022.06.19"]
[Round "2.6"]
[White "Machlik, Edit"]
[Black "Kordzadze, Nino"]
[Result "0-1"]
[ECO "A96"]
[WhiteElo "2084"]
[BlackElo "2043"]
[Annotator "NA RC"]
[PlyCount "116"]
[EventDate "2022.06.19"]
[EventType "swiss"]
[EventCountry "NET"]
[SourceTitle "playchess.com"]
[Source "ChessBase"]
[SourceQuality "1"]
[TimeControl "180+2"]

1. d4 {[%emt 0:00:02]} e6 {[%emt 0:00:04]} 2. c4 {[%emt 0:00:02]} f5 {[%emt 0:00:02]} 3. Nf3 {[%emt 0:00:05]} Nf6 {[%emt 0:00:01]} 4. g3 {[%emt 0:00:02]} Be7 {[%emt 0:00:02]} 5. Bg2 {[%emt 0:00:02]} O-O {[%emt 0:00:01]} 6. O-O {[%emt 0:00:02]} d6 {[%emt 0:00:01]} 7. Nc3 {[%emt 0:00:05]} a5 {[%emt 0:00:04]} 8. Qc2 {[%emt 0:00:06]} Nc6 {[%emt 0:00:03]} 9. a3 {[%emt 0:00:06]} e5 {[%emt 0:00:10]} 10. dxe5 {[%emt 0:00:32]} dxe5 {[%emt 0:00:24]} 11. e4 {[%emt 0:00:03]} fxe4 {[%emt 0:00:27]} 12. Nxe4 {[%emt 0:00:03]} Bf5 {[%emt 0:00:13]} 13. Nxf6+ {[%emt 0:00:02]} Rxf6 {[%emt 0:00:02]} 14. Qc3 {[%emt 0:00:04]} e4 {[%emt 0:00:39]} 15. Ng5 {[%emt 0:00:18]} Qd3 {[%emt 0:00:37]} 16. Qxd3 {[%emt 0:00:43]} exd3 {[%emt 0:00:01]} 17. Bd5+ {[%emt 0:00:02]} Kf8 {[%emt 0:00:09]} 18. Bf4 {[%emt 0:00:11]} h6 {[%emt 0:00:08]} 19. Nf3 {[%emt 0:00:05]} Bg4 {[%emt 0:00:08]} 20. Ne5 {[%emt 0:00:13]} Bh3 {[%emt 0:00:13]} 21. Rfd1 {[%emt 0:00:13]} g5 {[%emt 0:00:02]} 22. Nxc6 {[%emt 0:00:13]} bxc6 {[%emt 0:00:01]} 23. Be5 {[%emt 0:00:02]} cxd5 {[%emt 0:00:02]} 24. Bxf6 {[%emt 0:00:02]} Bxf6 {[%emt 0:00:02]} 25. cxd5 {[%emt 0:00:06]} Bf5 {[%emt 0:00:04]} 26. Rd2 {[%emt 0:00:02]} Rd8 {[%emt 0:00:02]} 27. Rc1 {[%emt 0:00:03]} Be5 {[%emt 0:00:02]} 28. f3 {[%emt 0:00:04]} Bd4+ {[%emt 0:00:02]} 29. Kf1 {[%emt 0:00:01]} Be3 {[%emt 0:00:01]} 30. Rcd1 {[%emt 0:00:02]} Bxd2 {[%emt 0:00:01]} 31. Rxd2 {[%emt 0:00:02]} Rxd5 {[%emt 0:00:02]} 32. Kf2 {[%emt 0:00:01]} c5 {[%emt 0:00:01]} 33. Ke3 {[%emt 0:00:02]} c4 {[%emt 0:00:02]} 34. g4 {[%emt 0:00:01]} Bg6 {[%emt 0:00:02]} 35. f4 {[%emt 0:00:01]} gxf4+ {[%emt 0:00:02]} 36. Kxf4 {[%emt 0:00:01]} Rd4+ {[%emt 0:00:02]} 37. Kf3 {[%emt 0:00:02]} Ke7 {[%emt 0:00:03]} 38. h3 {[%emt 0:00:02]} Kd6 {[%emt 0:00:02]} 39. h4 {[%emt 0:00:04]} Kd5 {[%emt 0:00:03]} 40. g5 {[%emt 0:00:01]} hxg5 {[%emt 0:00:01]} 41. hxg5 {[%emt 0:00:01]} Re4 {[%emt 0:00:01]} 42. Rh2 {[%emt 0:00:04]} Re2 {[%emt 0:00:05]} 43. Rh6 {[%emt 0:00:03]} Be4+ {[%emt 0:00:03]} 44. Kf4 {[%emt 0:00:05]} Rf2+ {[%emt 0:00:01]} 45. Ke3 {[%emt 0:00:02]} Re2+ {[%emt 0:00:02]} 46. Kf4 {[%emt 0:00:03]} d2 {[%emt 0:00:01]} 47. Rh1 {[%emt 0:00:03]} Re1 {[%emt 0:00:01]} 48. Rh8 {[%emt 0:00:02]} d1=Q {[%emt 0:00:04]} 49. Rd8+ {[%emt 0:00:01]} Kc5 {[%emt 0:00:02]} 50. Rxd1 {[%emt 0:00:02]} Rxd1 {[%emt 0:00:01]} 51. Kxe4 {[%emt 0:00:01]} Rg1 {[%emt 0:00:01]} 52. Kf5 {[%emt 0:00:02]} Kd4 {[%emt 0:00:02]} 53. Kf6 {[%emt 0:00:01]} Kd3 {[%emt 0:00:01]} 54. g6 {[%emt 0:00:02]} Kc2 {[%emt 0:00:01]} 55. Kf7 {[%emt 0:00:01]} Kxb2 {[%emt 0:00:01]} 56. g7 {[%emt 0:00:01]} Kxa3 {[%emt 0:00:02]} 57. g8=Q {[%emt 0:00:02]} Rxg8 {[%emt 0:00:02]} 58. Kxg8 {[%emt 0:00:01]} c3 {[%emt 0:00:01]} 0-1

[Event "Queens Festival Europe 2022"]
[Site "Tornelo"]
[Date "2022.06.19"]
[Round "2.6"]
[White "Bordin, Silvia"]
[Black "Grimaldi, Angela Flavia"]
[Result "1-0"]
[ECO "B36"]
[WhiteElo "1991"]
[BlackElo "1995"]
[Annotator "NA RC"]
[PlyCount "61"]
[EventDate "2022.06.19"]
[EventType "swiss"]
[EventCountry "NET"]
[SourceTitle "playchess.com"]
[Source "ChessBase"]
[SourceQuality "1"]
[TimeControl "180+2"]

1. e4 {[%emt 0:00:02]} c5 {[%emt 0:00:04]} 2. Nf3 {[%emt 0:00:02]} g6 {[%emt 0:00:02]} 3. d4 {[%emt 0:00:02]} cxd4 {[%emt 0:00:01]} 4. Nxd4 {[%emt 0:00:00]} Nc6 {[%emt 0:00:02]} 5. c4 {[%emt 0:00:03]} Nf6 {[%emt 0:00:03]} 6. Nc3 {[%emt 0:00:02]} Nxd4 {[%emt 0:00:03]} 7. Qxd4 {[%emt 0:00:02]} d6 {[%emt 0:00:01]} 8. Be2 {[%emt 0:00:06]} Bg7 {[%emt 0:00:03]} 9. Qd1 {[%emt 0:00:08]} O-O {[%emt 0:00:02]} 10. Be3 {[%emt 0:00:02]} a5 {[%emt 0:00:04]} 11. O-O {[%emt 0:00:04]} a4 {[%emt 0:00:03]} 12. f3 {[%emt 0:00:06]} Qa5 {[%emt 0:00:07]} 13. Rc1 {[%emt 0:00:05]} Be6 {[%emt 0:00:02]} 14. Qd2 {[%emt 0:00:11]} Rfc8 {[%emt 0:00:09]} 15. b3 {[%emt 0:00:26]} axb3 {[%emt 0:00:09]} 16. axb3 {[%emt 0:00:00]} Qb4 {[%emt 0:00:06]} 17. Rb1 {[%emt 0:00:05]} Nd7 {[%emt 0:01:47]} 18. Bd4 {[%emt 0:00:34]} Bxd4+ {[%emt 0:00:11]} 19. Qxd4 {[%emt 0:00:00]} Qc5 {[%emt 0:00:15]} 20. Rfd1 {[%emt 0:00:05]} Qxd4+ {[%emt 0:00:11]} 21. Rxd4 {[%emt 0:00:00]} Nc5 {[%emt 0:00:06]} 22. b4 {[%emt 0:00:17]} Na4 {[%emt 0:00:03]} 23. Nd5 {[%emt 0:00:06]} Bxd5 {[%emt 0:00:03]} 24. exd5 {[%emt 0:00:02]} Nc3 {[%emt 0:00:04]} 25. Rb2 {[%emt 0:00:07]} Ra1+ {[%emt 0:00:02]} 26. Kf2 {[%emt 0:00:02]} Nxe2 {[%emt 0:00:02]} 27. Rxe2 {[%emt 0:00:02]} Kf8 {[%emt 0:00:04]} 28. Rc2 {[%emt 0:00:05]} Ra4 {[%emt 0:00:02]} 29. Rb2 {[%emt 0:00:07]} Ke8 {[%emt 0:00:02]} 30. Ke3 {[%emt 0:00:03]} Kd7 {[%emt 0:00:01]} 31. Kd2 {[%emt 0:00:07]} 1-0

[Event "Queens Festival Europe 2022"]
[Site "Tornelo"]
[Date "2022.06.19"]
[Round "2.6"]
[White "Egger, Stefanie"]
[Black "Bayona, Karin Silvana"]
[Result "0-1"]
[ECO "D94"]
[WhiteElo "1700"]
[BlackElo "1793"]
[Annotator "NA RC"]
[PlyCount "88"]
[EventDate "2022.06.19"]
[EventType "swiss"]
[EventCountry "NET"]
[SourceTitle "playchess.com"]
[Source "ChessBase"]
[SourceQuality "1"]
[TimeControl "180+2"]

1. d4 {[%emt 0:00:02]} Nf6 {[%emt 0:00:05]} 2. c4 {[%emt 0:00:03]} g6 {[%emt 0:00:01]} 3. Nc3 {[%emt 0:00:02]} d5 {[%emt 0:00:02]} 4. e3 {[%emt 0:00:05]} Bg7 {[%emt 0:00:02]} 5. Nf3 {[%emt 0:00:04]} O-O {[%emt 0:00:02]} 6. Bd3 {[%emt 0:00:11]} dxc4 {[%emt 0:00:03]} 7. Bxc4 {[%emt 0:00:02]} Nbd7 {[%emt 0:00:04]} 8. O-O {[%emt 0:00:02]} Nb6 {[%emt 0:00:03]} 9. Bb3 {[%emt 0:00:08]} e6 {[%emt 0:00:14]} 10. e4 {[%emt 0:00:22]} Nfd7 {[%emt 0:00:29]} 11. Bg5 {[%emt 0:00:26]} Qe8 {[%emt 0:00:11]} 12. Re1 {[%emt 0:00:18]} c5 {[%emt 0:00:03]} 13. d5 {[%emt 0:00:12]} c4 {[%emt 0:00:20]} 14. Bc2 {[%emt 0:00:10]} f6 {[%emt 0:00:13]} 15. Bf4 {[%emt 0:00:28]} exd5 {[%emt 0:00:20]} 16. exd5 {[%emt 0:00:05]} Qf7 {[%emt 0:00:05]} 17. d6 {[%emt 0:00:34]} Ne5 {[%emt 0:00:16]} 18. Nxe5 {[%emt 0:00:07]} fxe5 {[%emt 0:00:02]} 19. Bg3 {[%emt 0:00:02]} Bd7 {[%emt 0:00:12]} 20. Ne4 {[%emt 0:00:05]} Nd5 {[%emt 0:00:15]} 21. b3 {[%emt 0:00:09]} cxb3 {[%emt 0:00:18]} 22. Bxb3 {[%emt 0:00:01]} Be6 {[%emt 0:00:03]} 23. Rc1 {[%emt 0:00:04]} Rad8 {[%emt 0:00:07]} 24. Qe2 {[%emt 0:00:02]} Rd7 {[%emt 0:00:06]} 25. Bxd5 {[%emt 0:00:02]} Bxd5 {[%emt 0:00:03]} 26. Red1 {[%emt 0:00:01]} Bxe4 {[%emt 0:00:05]} 27. Qxe4 {[%emt 0:00:02]} Qf6 {[%emt 0:00:05]} 28. h3 {[%emt 0:00:02]} Rxd6 {[%emt 0:00:03]} 29. Rxd6 {[%emt 0:00:02]} Qxd6 {[%emt 0:00:01]} 30. Re1 {[%emt 0:00:02]} Re8 {[%emt 0:00:03]} 31. Qxb7 {[%emt 0:00:02]} Kh8 {[%emt 0:00:02]} 32. Qxa7 {[%emt 0:00:02]} Qd2 {[%emt 0:00:02]} 33. Qe3 {[%emt 0:00:02]} Qd5 {[%emt 0:00:02]} 34. f4 {[%emt 0:00:02]} Qxa2 {[%emt 0:00:03]} 35. fxe5 {[%emt 0:00:02]} Qd5 {[%emt 0:00:02]} 36. e6 {[%emt 0:00:02]} Bd4 {[%emt 0:00:04]} 37. Be5+ {[%emt 0:00:02]} Qxe5 {[%emt 0:00:02]} 38. Qxd4 {[%emt 0:00:04]} Qxd4+ {[%emt 0:00:02]} 39. Kh2 {[%emt 0:00:02]} Qd6+ {[%emt 0:00:02]} 40. g3 {[%emt 0:00:02]} Rxe6 {[%emt 0:00:02]} 41. Rf1 {[%emt 0:00:01]} Re2+ {[%emt 0:00:02]} 42. Kg1 {[%emt 0:00:01]} Qc5+ {[%emt 0:00:02]} 43. Kh1 {[%emt 0:00:02]} Qd5+ {[%emt 0:00:01]} 44. Kg1 {[%emt 0:00:02]} Qg2# {[%emt 0:00:02]} 0-1

[Event "Queens Festival Europe 2022"]
[Site "Tornelo"]
[Date "2022.06.19"]
[Round "2.6"]
[White "Valiyeva, Asnad"]
[Black "Jafarova, Aysel"]
[Result "1/2-1/2"]
[ECO "D00"]
[WhiteElo "1237"]
[BlackElo "1481"]
[Annotator "NA RC"]
[PlyCount "117"]
[EventDate "2022.06.19"]
[EventType "swiss"]
[EventCountry "NET"]
[SourceTitle "playchess.com"]
[Source "ChessBase"]
[SourceQuality "1"]
[TimeControl "180+2"]

1. d4 {[%emt 0:00:02]} d5 {[%emt 0:00:04]} 2. Bf4 {[%emt 0:00:02]} Nf6 {[%emt 0:00:02]} 3. e3 {[%emt 0:00:02]} c5 {[%emt 0:00:01]} 4. c3 {[%emt 0:00:02]} Nc6 {[%emt 0:00:01]} 5. Nd2 {[%emt 0:00:02]} Qb6 {[%emt 0:00:02]} 6. Qb3 {[%emt 0:00:02]} c4 {[%emt 0:00:02]} 7. Qc2 {[%emt 0:00:01]} g6 {[%emt 0:00:08]} 8. b3 {[%emt 0:00:03]} Bf5 {[%emt 0:00:03]} 9. Qc1 {[%emt 0:00:02]} cxb3 {[%emt 0:00:08]} 10. axb3 {[%emt 0:00:03]} Bg7 {[%emt 0:00:09]} 11. Ngf3 {[%emt 0:00:04]} Nh5 {[%emt 0:00:06]} 12. Bg3 {[%emt 0:00:03]} Nxg3 {[%emt 0:00:01]} 13. hxg3 {[%emt 0:00:02]} a6 {[%emt 0:00:06]} 14. Be2 {[%emt 0:00:02]} Rc8 {[%emt 0:00:06]} 15. Qb2 {[%emt 0:00:03]} Qc7 {[%emt 0:00:05]} 16. O-O {[%emt 0:00:03]} O-O {[%emt 0:00:03]} 17. Nh4 {[%emt 0:00:05]} Bd7 {[%emt 0:00:07]} 18. c4 {[%emt 0:00:03]} e6 {[%emt 0:00:15]} 19. Rfc1 {[%emt 0:00:05]} Qd8 {[%emt 0:00:11]} 20. Bf3 {[%emt 0:00:03]} Ne7 {[%emt 0:00:07]} 21. Be2 {[%emt 0:00:06]} Bc6 {[%emt 0:00:14]} 22. Nhf3 {[%emt 0:00:03]} Nf5 {[%emt 0:00:05]} 23. Bd3 {[%emt 0:00:05]} Nd6 {[%emt 0:00:06]} 24. c5 {[%emt 0:00:04]} Nb5 {[%emt 0:00:04]} 25. b4 {[%emt 0:00:04]} Qe7 {[%emt 0:00:05]} 26. Nb3 {[%emt 0:00:05]} Qd7 {[%emt 0:00:22]} 27. Na5 {[%emt 0:00:02]} Rfe8 {[%emt 0:00:04]} 28. Nxc6 {[%emt 0:00:09]} Qxc6 {[%emt 0:00:03]} 29. Bxb5 {[%emt 0:00:03]} Qxb5 {[%emt 0:00:02]} 30. Ra5 {[%emt 0:00:03]} Qc6 {[%emt 0:00:07]} 31. b5 {[%emt 0:00:04]} axb5 {[%emt 0:00:02]} 32. Qxb5 {[%emt 0:00:03]} Ra8 {[%emt 0:00:10]} 33. Qxc6 {[%emt 0:00:05]} bxc6 {[%emt 0:00:02]} 34. Rca1 {[%emt 0:00:02]} Rxa5 {[%emt 0:00:11]} 35. Rxa5 {[%emt 0:00:02]} e5 {[%emt 0:00:04]} 36. Ra6 {[%emt 0:00:04]} exd4 {[%emt 0:00:05]} 37. exd4 {[%emt 0:00:03]} Re6 {[%emt 0:00:08]} 38. Ra8+ {[%emt 0:00:05]} Bf8 {[%emt 0:00:03]} 39. Ne5 {[%emt 0:00:04]} Kg7 {[%emt 0:00:04]} 40. Rc8 {[%emt 0:00:03]} Bxc5 {[%emt 0:00:06]} 41. dxc5 {[%emt 0:00:09]} Rxe5 {[%emt 0:00:01]} 42. Rxc6 {[%emt 0:00:02]} Re1+ {[%emt 0:00:02]} 43. Kh2 {[%emt 0:00:02]} d4 {[%emt 0:00:02]} 44. Rd6 {[%emt 0:00:03]} Rc1 {[%emt 0:00:01]} 45. Rxd4 {[%emt 0:00:02]} Rxc5 {[%emt 0:00:02]} 46. g4 {[%emt 0:00:02]} Kf6 {[%emt 0:00:04]} 47. f3 {[%emt 0:00:02]} Rc2 {[%emt 0:00:02]} 48. Kg3 {[%emt 0:00:03]} Rc3 {[%emt 0:00:02]} 49. Rd5 {[%emt 0:00:02]} Rc2 {[%emt 0:00:05]} 50. Ra5 {[%emt 0:00:04]} h6 {[%emt 0:00:02]} 51. Ra6+ {[%emt 0:00:04]} Kg7 {[%emt 0:00:02]} 52. Ra5 {[%emt 0:00:06]} g5 {[%emt 0:00:01]} 53. Ra6 {[%emt 0:00:02]} f6 {[%emt 0:00:03]} 54. Ra7+ {[%emt 0:00:02]} Kg6 {[%emt 0:00:01]} 55. Ra8 {[%emt 0:00:02]} Rc3 {[%emt 0:00:06]} 56. Kf2 {[%emt 0:00:03]} Rc2+ {[%emt 0:00:02]} 57. Kg3 {[%emt 0:00:02]} Rc3 {[%emt 0:00:05]} 58. Kf2 {[%emt 0:00:03]} Rc2+ {[%emt 0:00:03]} 59. Kg3 {[%emt 0:00:02]} 1/2-1/2

[Event "Queens Festival Europe 2022"]
[Site "Tornelo"]
[Date "2022.06.19"]
[Round "2.7"]
[White "Steffensen, Elena"]
[Black "Ayzenberg, Alena"]
[Result "1-0"]
[ECO "C11"]
[WhiteElo "2044"]
[BlackElo "2016"]
[Annotator "NA RC"]
[PlyCount "63"]
[EventDate "2022.06.19"]
[EventType "swiss"]
[EventCountry "NET"]
[SourceTitle "playchess.com"]
[Source "ChessBase"]
[SourceQuality "1"]
[TimeControl "180+2"]

1. e4 {[%emt 0:00:02]} e6 {[%emt 0:00:05]} 2. Nc3 {[%emt 0:00:04]} d5 {[%emt 0:00:02]} 3. Nf3 {[%emt 0:00:06]} Nf6 {[%emt 0:00:03]} 4. e5 {[%emt 0:00:02]} Nfd7 {[%emt 0:00:01]} 5. d4 {[%emt 0:00:01]} c5 {[%emt 0:00:02]} 6. dxc5 {[%emt 0:00:02]} Bxc5 {[%emt 0:00:05]} 7. Bd3 {[%emt 0:00:02]} Nc6 {[%emt 0:00:06]} 8. Bf4 {[%emt 0:00:05]} Qc7 {[%emt 0:00:33]} 9. O-O {[%emt 0:00:08]} a6 {[%emt 0:00:26]} 10. Re1 {[%emt 0:00:12]} h6 {[%emt 0:00:15]} 11. Nxd5 {[%emt 0:00:11]} exd5 {[%emt 0:00:09]} 12. e6 {[%emt 0:00:01]} Qxf4 {[%emt 0:00:06]} 13. exd7+ {[%emt 0:00:03]} Kxd7 {[%emt 0:00:06]} 14. Bxa6 {[%emt 0:00:12]} Rxa6 {[%emt 0:00:18]} 15. Qxd5+ {[%emt 0:00:02]} Bd6 {[%emt 0:00:10]} 16. c4 {[%emt 0:00:04]} Ra5 {[%emt 0:00:13]} 17. Qd3 {[%emt 0:00:14]} Kc7 {[%emt 0:00:13]} 18. a3 {[%emt 0:00:04]} Bf5 {[%emt 0:00:05]} 19. Qc3 {[%emt 0:00:09]} Be4 {[%emt 0:00:16]} 20. b4 {[%emt 0:00:28]} Bxf3 {[%emt 0:00:09]} 21. g3 {[%emt 0:00:01]} Qf5 {[%emt 0:00:12]} 22. bxa5 {[%emt 0:00:03]} Nxa5 {[%emt 0:00:03]} 23. c5 {[%emt 0:00:06]} Qxc5 {[%emt 0:00:04]} 24. Qxf3 {[%emt 0:00:06]} Rf8 {[%emt 0:00:06]} 25. Rac1 {[%emt 0:00:01]} Nc4 {[%emt 0:00:02]} 26. Qe4 {[%emt 0:00:16]} Qc6 {[%emt 0:00:01]} 27. Qxc4 {[%emt 0:00:03]} Qxc4 {[%emt 0:00:03]} 28. Rxc4+ {[%emt 0:00:01]} Kd7 {[%emt 0:00:01]} 29. a4 {[%emt 0:00:02]} Rb8 {[%emt 0:00:02]} 30. Rb1 {[%emt 0:00:02]} b6 {[%emt 0:00:02]} 31. Rd1 {[%emt 0:00:05]} Ra8 {[%emt 0:00:03]} 32. Rcd4 {[%emt 0:00:03]} 1-0

[Event "Queens Festival Europe 2022"]
[Site "Tornelo"]
[Date "2022.06.19"]
[Round "2.7"]
[White "Shabanaj, Eglantina"]
[Black "Deak-Sala, Emilia"]
[Result "0-1"]
[ECO "E61"]
[WhiteElo "1986"]
[BlackElo "1883"]
[Annotator "NA RC"]
[PlyCount "142"]
[EventDate "2022.06.19"]
[EventType "swiss"]
[EventCountry "NET"]
[SourceTitle "playchess.com"]
[Source "ChessBase"]
[SourceQuality "1"]
[TimeControl "180+2"]

1. d4 {[%emt 0:00:02]} Nf6 {[%emt 0:00:05]} 2. c4 {[%emt 0:00:04]} g6 {[%emt 0:00:02]} 3. Nc3 {[%emt 0:00:03]} Bg7 {[%emt 0:00:01]} 4. Bg5 {[%emt 0:00:02]} O-O {[%emt 0:00:03]} 5. e3 {[%emt 0:00:02]} d6 {[%emt 0:00:01]} 6. Nf3 {[%emt 0:00:02]} Nbd7 {[%emt 0:00:01]} 7. Bd3 {[%emt 0:00:03]} c5 {[%emt 0:00:02]} 8. O-O {[%emt 0:00:02]} h6 {[%emt 0:00:19]} 9. Bxf6 {[%emt 0:00:03]} Bxf6 {[%emt 0:00:06]} 10. Qe2 {[%emt 0:00:04]} Bg7 {[%emt 0:00:32]} 11. Rfe1 {[%emt 0:00:04]} b6 {[%emt 0:00:29]} 12. Rad1 {[%emt 0:00:05]} Bb7 {[%emt 0:00:03]} 13. d5 {[%emt 0:00:03]} a6 {[%emt 0:00:17]} 14. e4 {[%emt 0:00:03]} Rb8 {[%emt 0:00:15]} 15. h3 {[%emt 0:00:04]} Bc8 {[%emt 0:00:38]} 16. a4 {[%emt 0:00:05]} Ne5 {[%emt 0:00:17]} 17. Nxe5 {[%emt 0:00:05]} Bxe5 {[%emt 0:00:02]} 18. Qe3 {[%emt 0:00:03]} Bxc3 {[%emt 0:00:03]} 19. bxc3 {[%emt 0:00:03]} Kh7 {[%emt 0:00:02]} 20. e5 {[%emt 0:00:03]} Bd7 {[%emt 0:00:04]} 21. e6 {[%emt 0:00:04]} Bxa4 {[%emt 0:00:03]} 22. exf7 {[%emt 0:00:04]} Rxf7 {[%emt 0:00:02]} 23. Ra1 {[%emt 0:00:05]} b5 {[%emt 0:00:02]} 24. cxb5 {[%emt 0:00:04]} axb5 {[%emt 0:00:01]} 25. Qe4 {[%emt 0:00:06]} Rg7 {[%emt 0:00:02]} 26. Re3 {[%emt 0:00:03]} Qf8 {[%emt 0:00:03]} 27. Rg3 {[%emt 0:00:04]} Qf6 {[%emt 0:00:02]} 28. Re1 {[%emt 0:00:03]} Bb3 {[%emt 0:00:05]} 29. Rf3 {[%emt 0:00:08]} Qg5 {[%emt 0:00:04]} 30. Qe6 {[%emt 0:00:06]} c4 {[%emt 0:00:05]} 31. Bb1 {[%emt 0:00:03]} b4 {[%emt 0:00:01]} 32. cxb4 {[%emt 0:00:04]} Rxb4 {[%emt 0:00:02]} 33. Rf7 {[%emt 0:00:04]} c3 {[%emt 0:00:06]} 34. Rxg7+ {[%emt 0:00:14]} Kxg7 {[%emt 0:00:01]} 35. Qxe7+ {[%emt 0:00:04]} Qxe7 {[%emt 0:00:02]} 36. Rxe7+ {[%emt 0:00:04]} Kf8 {[%emt 0:00:01]} 37. Rc7 {[%emt 0:00:02]} Rc4 {[%emt 0:00:03]} 38. Rxc4 {[%emt 0:00:04]} Bxc4 {[%emt 0:00:01]} 39. Bc2 {[%emt 0:00:03]} Bxd5 {[%emt 0:00:02]} 40. f3 {[%emt 0:00:02]} Kg7 {[%emt 0:00:01]} 41. Kf2 {[%emt 0:00:02]} Bc4 {[%emt 0:00:01]} 42. Ke3 {[%emt 0:00:03]} Bf1 {[%emt 0:00:03]} 43. Kf2 {[%emt 0:00:04]} Bb5 {[%emt 0:00:01]} 44. g3 {[%emt 0:00:05]} Kf6 {[%emt 0:00:01]} 45. Ke3 {[%emt 0:00:02]} Ke5 {[%emt 0:00:02]} 46. f4+ {[%emt 0:00:04]} Kd5 {[%emt 0:00:02]} 47. g4 {[%emt 0:00:03]} g5 {[%emt 0:00:02]} 48. f5 {[%emt 0:00:04]} Ke5 {[%emt 0:00:01]} 49. f6 {[%emt 0:00:20]} Kxf6 {[%emt 0:00:02]} 50. Kd4 {[%emt 0:00:01]} Bf1 {[%emt 0:00:02]} 51. Kxc3 {[%emt 0:00:05]} Bxh3 {[%emt 0:00:01]} 52. Bf5 {[%emt 0:00:02]} h5 {[%emt 0:00:02]} 53. Kd4 {[%emt 0:00:10]} Bxg4 {[%emt 0:00:02]} 54. Be4 {[%emt 0:00:03]} Bf5 {[%emt 0:00:03]} 55. Bg2 {[%emt 0:00:03]} g4 {[%emt 0:00:03]} 56. Ke3 {[%emt 0:00:04]} Kg5 {[%emt 0:00:03]} 57. Bd5 {[%emt 0:00:04]} h4 {[%emt 0:00:02]} 58. Kf2 {[%emt 0:00:02]} Bg6 {[%emt 0:00:03]} 59. Be6 {[%emt 0:00:05]} Kf4 {[%emt 0:00:02]} 60. Bd5 {[%emt 0:00:04]} g3+ {[%emt 0:00:03]} 61. Kg1 {[%emt 0:00:04]} h3 {[%emt 0:00:02]} 62. Be6 {[%emt 0:00:03]} h2+ {[%emt 0:00:03]} 63. Kg2 {[%emt 0:00:03]} Be4+ {[%emt 0:00:02]} 64. Kf1 {[%emt 0:00:02]} h1=Q+ {[%emt 0:00:02]} 65. Ke2 {[%emt 0:00:02]} g2 {[%emt 0:00:02]} 66. Bd7 {[%emt 0:00:03]} g1=Q {[%emt 0:00:02]} 67. Kd2 {[%emt 0:00:02]} Qf3 {[%emt 0:00:02]} 68. Bb5 {[%emt 0:00:03]} Qgg2+ {[%emt 0:00:02]} 69. Kc1 {[%emt 0:00:03]} Qa3+ {[%emt 0:00:02]} 70. Kd1 {[%emt 0:00:03]} Bf3+ {[%emt 0:00:01]} 71. Ke1 {[%emt 0:00:03]} Qc1# {[%emt 0:00:02]} 0-1

[Event "Queens Festival Europe 2022"]
[Site "Tornelo"]
[Date "2022.06.19"]
[Round "2.7"]
[White "Vukosavljevic, Tatjana"]
[Black "Thornton, Filipina"]
[Result "0-1"]
[ECO "A33"]
[WhiteElo "1758"]
[BlackElo "1660"]
[Annotator "NA RC"]
[PlyCount "86"]
[EventDate "2022.06.19"]
[EventType "swiss"]
[EventCountry "NET"]
[SourceTitle "playchess.com"]
[Source "ChessBase"]
[SourceQuality "1"]
[TimeControl "180+2"]

1. Nf3 {[%emt 0:00:02]} c5 {[%emt 0:00:09]} 2. g3 {[%emt 0:00:03]} d6 {[%emt 0:00:02]} 3. Bg2 {[%emt 0:00:02]} Nc6 {[%emt 0:00:01]} 4. O-O {[%emt 0:00:02]} Nf6 {[%emt 0:00:04]} 5. c4 {[%emt 0:00:03]} e6 {[%emt 0:00:02]} 6. Nc3 {[%emt 0:00:07]} Be7 {[%emt 0:00:02]} 7. d4 {[%emt 0:00:08]} cxd4 {[%emt 0:00:02]} 8. Nxd4 {[%emt 0:00:02]} Bd7 {[%emt 0:00:05]} 9. e3 {[%emt 0:00:07]} O-O {[%emt 0:00:02]} 10. b3 {[%emt 0:00:07]} Rc8 {[%emt 0:00:07]} 11. Ndb5 {[%emt 0:00:07]} a6 {[%emt 0:00:04]} 12. Nxd6 {[%emt 0:00:07]} Rc7 {[%emt 0:00:17]} 13. Bb2 {[%emt 0:00:16]} Ne8 {[%emt 0:00:14]} 14. Nce4 {[%emt 0:00:30]} Bc8 {[%emt 0:00:07]} 15. Nxc8 {[%emt 0:00:13]} Qxc8 {[%emt 0:00:02]} 16. Qc2 {[%emt 0:00:10]} Nb4 {[%emt 0:00:06]} 17. Qc3 {[%emt 0:00:04]} Nf6 {[%emt 0:00:18]} 18. a3 {[%emt 0:00:10]} Nc6 {[%emt 0:00:11]} 19. Rfd1 {[%emt 0:00:09]} Rd8 {[%emt 0:00:08]} 20. Rac1 {[%emt 0:00:11]} e5 {[%emt 0:00:10]} 21. Qc2 {[%emt 0:00:15]} Bf8 {[%emt 0:00:01]} 22. Nc3 {[%emt 0:00:09]} Rcd7 {[%emt 0:00:12]} 23. Rxd7 {[%emt 0:00:07]} Rxd7 {[%emt 0:00:02]} 24. Rd1 {[%emt 0:00:02]} Ne7 {[%emt 0:00:13]} 25. Rd2 {[%emt 0:00:12]} Ng6 {[%emt 0:00:06]} 26. Qd1 {[%emt 0:00:02]} Rxd2 {[%emt 0:00:03]} 27. Qxd2 {[%emt 0:00:02]} Qf5 {[%emt 0:00:04]} 28. Bxb7 {[%emt 0:00:07]} Ng4 {[%emt 0:00:03]} 29. Bg2 {[%emt 0:00:09]} h5 {[%emt 0:00:02]} 30. Qe2 {[%emt 0:00:11]} h4 {[%emt 0:00:06]} 31. Bh3 {[%emt 0:00:02]} Qd7 {[%emt 0:00:21]} 32. Bxg4 {[%emt 0:00:02]} Qd6 {[%emt 0:00:02]} 33. Bf3 {[%emt 0:00:02]} hxg3 {[%emt 0:00:04]} 34. hxg3 {[%emt 0:00:02]} Ne7 {[%emt 0:00:01]} 35. Qd1 {[%emt 0:00:02]} Qg6 {[%emt 0:00:03]} 36. Qb1 {[%emt 0:00:02]} Qh6 {[%emt 0:00:03]} 37. Kg2 {[%emt 0:00:02]} Ng6 {[%emt 0:00:03]} 38. Qh1 {[%emt 0:00:03]} Qg5 {[%emt 0:00:03]} 39. Qh3 {[%emt 0:00:02]} Qd8 {[%emt 0:00:02]} 40. Ne4 {[%emt 0:00:02]} Be7 {[%emt 0:00:07]} 41. Nc3 {[%emt 0:00:02]} Qd2 {[%emt 0:00:03]} 42. Nd5 {[%emt 0:00:03]} Qxb2 {[%emt 0:00:05]} 43. Qc8+ {[%emt 0:00:02]} Bf8 {[%emt 0:00:05]} 0-1